[Event "Titled Tuesday Blitz March 07 Early 2023"]
[White "Sovetov, Oleksandr"]
[Black "Alahakoon, Isuru"]
[WhiteFideId "34105786"]
[BlackFideId "9900993"]
[WhiteElo "2525"]
[BlackElo "1995"]
[Result "1-0"]
[Round "04"]
[TimeControl "180+2"]
[Date "2023.03.07"]
[WhiteClock "0:00:29"]
[BlackClock "0:00:01"]

1. Nf3 {[%clk 0:02:58]}  d5 {[%clk 0:02:59]} 2. e3 {[%clk 0:02:58]}  Nc6 {[%clk 0:02:58]} 3. d4 {[%clk 0:02:54]}  Bg4 {[%clk 0:02:57]} 4. h3 {[%clk 0:02:50]}  Bxf3 {[%clk 0:02:55]} 5. Qxf3 {[%clk 0:02:51]}  e5 {[%clk 0:02:55]} 6. Bb5 {[%clk 0:02:45]}  e4 {[%clk 0:02:51]} 7. Bxc6+ {[%clk 0:02:45]}  bxc6 {[%clk 0:02:51]} 8. Qd1 {[%clk 0:02:45]}  Nf6 {[%clk 0:02:50]} 9. c4 {[%clk 0:02:44]}  c5 {[%clk 0:02:33]} 10. Qa4+ {[%clk 0:02:36]}  Qd7 {[%clk 0:02:29]} 11. Qxd7+ {[%clk 0:02:37]}  Kxd7 {[%clk 0:02:30]} 12. dxc5 {[%clk 0:02:30]}  Bxc5 {[%clk 0:02:26]} 13. cxd5 {[%clk 0:02:26]}  Nxd5 {[%clk 0:02:27]} 14. O-O {[%clk 0:02:26]}  Ke6 {[%clk 0:02:23]} 15. Nd2 {[%clk 0:02:24]}  f5 {[%clk 0:02:22]} 16. b3 {[%clk 0:02:23]}  Rhd8 {[%clk 0:02:16]} 17. Nc4 {[%clk 0:02:21]}  Bb4 {[%clk 0:02:06]} 18. Bb2 {[%clk 0:02:17]}  Bc3 {[%clk 0:02:06]} 19. Rac1 {[%clk 0:02:18]}  Bxb2 {[%clk 0:02:05]} 20. Nxb2 {[%clk 0:02:19]}  Rd7 {[%clk 0:01:58]} 21. Rc6+ {[%clk 0:02:19]}  Rd6 {[%clk 0:01:57]} 22. Rfc1 {[%clk 0:02:18]}  Rd8 {[%clk 0:01:44]} 23. Kf1 {[%clk 0:02:15]}  Rxc6 {[%clk 0:01:35]} 24. Rxc6+ {[%clk 0:02:14]}  Rd6 {[%clk 0:01:35]} 25. Rc4 {[%clk 0:02:11]}  Nb6 {[%clk 0:01:31]} 26. Rxc7 {[%clk 0:02:06]}  Rd2 {[%clk 0:01:31]} 27. Nc4 {[%clk 0:01:54]}  Nxc4 {[%clk 0:01:25]} 28. bxc4 {[%clk 0:01:50]}  Rxa2 {[%clk 0:01:25]} 29. g4 {[%clk 0:01:08]}  fxg4 {[%clk 0:01:09]} 30. hxg4 {[%clk 0:01:09]}  Kf6 {[%clk 0:01:10]} 31. Kg2 {[%clk 0:01:05]}  h6 {[%clk 0:01:09]} 32. Kg3 {[%clk 0:01:05]}  g5 {[%clk 0:01:07]} 33. Rc6+ {[%clk 0:01:05]}  Kg7 {[%clk 0:01:07]} 34. Re6 {[%clk 0:01:05]}  a5 {[%clk 0:00:50]} 35. Rxe4 {[%clk 0:01:05]}  a4 {[%clk 0:00:50]} 36. c5 {[%clk 0:01:01]}  Rc2 {[%clk 0:00:45]} 37. Rxa4 {[%clk 0:01:00]}  Rxc5 {[%clk 0:00:45]} 38. Kf3 {[%clk 0:00:54]}  Rc2 {[%clk 0:00:43]} 39. Ra6 {[%clk 0:00:50]}  Rb2 {[%clk 0:00:40]} 40. Kg3 {[%clk 0:00:50]}  Re2 {[%clk 0:00:38]} 41. Re6 {[%clk 0:00:50]}  Kh7 {[%clk 0:00:34]} 42. Kf3 {[%clk 0:00:36]}  Ra2 {[%clk 0:00:29]} 43. Rf6 {[%clk 0:00:32]}  Kg7 {[%clk 0:00:28]} 44. Rf5 {[%clk 0:00:33]}  Kg6 {[%clk 0:00:27]} 45. Rd5 {[%clk 0:00:32]}  Rb2 {[%clk 0:00:25]} 46. Rd6+ {[%clk 0:00:33]}  Kg7 {[%clk 0:00:25]} 47. Rd1 {[%clk 0:00:33]}  Kg6 {[%clk 0:00:24]} 48. Rd6+ {[%clk 0:00:33]}  Kg7 {[%clk 0:00:24]} 49. Kg2 {[%clk 0:00:34]}  Rc2 {[%clk 0:00:22]} 50. Kg3 {[%clk 0:00:33]}  Re2 {[%clk 0:00:21]} 51. Rd3 {[%clk 0:00:33]}  Kg6 {[%clk 0:00:21]} 52. f4 {[%clk 0:00:34]}  gxf4+ {[%clk 0:00:19]} 53. exf4 {[%clk 0:00:35]}  Re1 {[%clk 0:00:18]} 54. Rd6+ {[%clk 0:00:35]}  Kg7 {[%clk 0:00:17]} 55. Kf3 {[%clk 0:00:35]}  Rf1+ {[%clk 0:00:17]} 56. Ke4 {[%clk 0:00:35]}  Ra1 {[%clk 0:00:15]} 57. Ke5 {[%clk 0:00:34]}  Ra5+ {[%clk 0:00:14]} 58. Rd5 {[%clk 0:00:35]}  Ra1 {[%clk 0:00:15]} 59. Rd7+ {[%clk 0:00:33]}  Kg6 {[%clk 0:00:15]} 60. Rd6+ {[%clk 0:00:34]}  Kg7 {[%clk 0:00:15]} 61. Ke6 {[%clk 0:00:33]}  Rg1 {[%clk 0:00:12]} 62. Kf5 {[%clk 0:00:33]}  Rb1 {[%clk 0:00:12]} 63. Rd7+ {[%clk 0:00:33]}  Kg8 {[%clk 0:00:11]} 64. Re7 {[%clk 0:00:33]}  Rb6 {[%clk 0:00:11]} 65. Re6 {[%clk 0:00:33]}  Rb5+ {[%clk 0:00:10]} 66. Kg6 {[%clk 0:00:34]}  Kf8 {[%clk 0:00:06]} 67. Kxh6 {[%clk 0:00:34]}  Rb4 {[%clk 0:00:06]} 68. Kg5 {[%clk 0:00:34]}  Rb5+ {[%clk 0:00:06]} 69. f5 {[%clk 0:00:34]}  Rb1 {[%clk 0:00:05]} 70. Kf6 {[%clk 0:00:34]}  Rb7 {[%clk 0:00:05]} 71. g5 {[%clk 0:00:34]}  Rf7+ {[%clk 0:00:05]} 72. Ke5 {[%clk 0:00:34]}  Kg7 {[%clk 0:00:02]} 73. Rg6+ {[%clk 0:00:29]}  Kh7 {[%clk 0:00:02]} 74. Ra6 {[%clk 0:00:30]}  Re7+ {[%clk 0:00:01]} 75. Kf6 {[%clk 0:00:29]} 1-0


[Site "https://www.chess.com"]

[Event "Titled Tuesday Blitz March 07 Early 2023"]
[White "Bilan, Danila"]
[Black "Prudnykova, Olga"]
[WhiteFideId "24161918"]
[BlackFideId "14121093"]
[WhiteElo "2182"]
[BlackElo "2113"]
[Result "0-1"]
[Round "04"]
[TimeControl "180+2"]
[Date "2023.03.07"]
[WhiteClock "0:00:06"]
[BlackClock "0:00:49"]

1. d4 {[%clk 0:02:52]}  Nf6 {[%clk 0:02:59]} 2. Nf3 {[%clk 0:02:50]}  g6 {[%clk 0:03:00]} 3. Bg5 {[%clk 0:02:47]}  Bg7 {[%clk 0:02:59]} 4. c3 {[%clk 0:02:48]}  d6 {[%clk 0:02:59]} 5. Nbd2 {[%clk 0:02:48]}  O-O {[%clk 0:02:56]} 6. e4 {[%clk 0:02:48]}  c5 {[%clk 0:02:54]} 7. Bc4 {[%clk 0:02:45]}  cxd4 {[%clk 0:02:47]} 8. cxd4 {[%clk 0:02:46]}  Nc6 {[%clk 0:02:38]} 9. O-O {[%clk 0:02:46]}  d5 {[%clk 0:02:33]} 10. Bxf6 {[%clk 0:02:25]}  Bxf6 {[%clk 0:02:31]} 11. Bxd5 {[%clk 0:02:22]}  Nxd4 {[%clk 0:02:27]} 12. Nxd4 {[%clk 0:02:13]}  Bxd4 {[%clk 0:02:26]} 13. Nc4 {[%clk 0:01:59]}  Bg7 {[%clk 0:02:17]} 14. e5 {[%clk 0:01:46]}  Rb8 {[%clk 0:01:45]} 15. a4 {[%clk 0:01:33]}  b6 {[%clk 0:01:42]} 16. Re1 {[%clk 0:01:27]}  Ba6 {[%clk 0:01:39]} 17. e6 {[%clk 0:01:15]}  f5 {[%clk 0:01:35]} 18. Ne5 {[%clk 0:01:04]}  Rc8 {[%clk 0:01:25]} 19. Nd7 {[%clk 0:00:47]}  Re8 {[%clk 0:01:22]} 20. b4 {[%clk 0:00:41]}  b5 {[%clk 0:01:20]} 21. axb5 {[%clk 0:00:35]}  Bxb5 {[%clk 0:01:20]} 22. Rxa7 {[%clk 0:00:32]}  Bc3 {[%clk 0:01:14]} 23. Re3 {[%clk 0:00:24]}  Bxb4 {[%clk 0:01:13]} 24. h4 {[%clk 0:00:15]}  Bd6 {[%clk 0:01:07]} 25. Nf6+ {[%clk 0:00:11]}  Kh8 {[%clk 0:00:57]} 26. Nxe8 {[%clk 0:00:10]}  Bxe8 {[%clk 0:00:52]} 27. Bb7 {[%clk 0:00:09]}  Rb8 {[%clk 0:00:52]} 28. Rb3 {[%clk 0:00:08]}  Qc7 {[%clk 0:00:50]} 29. Qd5 {[%clk 0:00:06]}  Qc1+ {[%clk 0:00:49]} 0-1


[Site "https://www.chess.com"]

[Event "Titled Tuesday Blitz March 07 Early 2023"]
[White "Kozin, Yuri"]
[Black "Rostomyan, Mikayel"]
[WhiteFideId "4129920"]
[BlackFideId "13313754"]
[WhiteElo "2508"]
[BlackElo "2009"]
[Result "1-0"]
[Round "04"]
[TimeControl "180+2"]
[Date "2023.03.07"]
[WhiteClock "0:01:57"]
[BlackClock "0:00:26"]

1. e4 {[%clk 0:02:57]}  c5 {[%clk 0:02:59]} 2. Nf3 {[%clk 0:02:57]}  d6 {[%clk 0:02:59]} 3. d4 {[%clk 0:02:57]}  cxd4 {[%clk 0:03:00]} 4. Nxd4 {[%clk 0:02:58]}  Nf6 {[%clk 0:03:01]} 5. Nc3 {[%clk 0:02:58]}  a6 {[%clk 0:03:01]} 6. Be3 {[%clk 0:02:59]}  e5 {[%clk 0:03:02]} 7. Nf3 {[%clk 0:02:59]}  Be7 {[%clk 0:03:02]} 8. Bc4 {[%clk 0:03:00]}  Be6 {[%clk 0:02:58]} 9. Bxe6 {[%clk 0:02:59]}  fxe6 {[%clk 0:02:59]} 10. O-O {[%clk 0:03:00]}  O-O {[%clk 0:02:58]} 11. Na4 {[%clk 0:03:00]}  Nxe4 {[%clk 0:01:39]} 12. Nb6 {[%clk 0:02:58]}  Ra7 {[%clk 0:01:29]} 13. Nd5 {[%clk 0:02:58]}  Ra8 {[%clk 0:01:20]} 14. Bb6 {[%clk 0:02:55]}  Qd7 {[%clk 0:01:13]} 15. Nc7 {[%clk 0:02:55]}  Nc6 {[%clk 0:01:13]} 16. Nxa8 {[%clk 0:02:55]}  Rxa8 {[%clk 0:01:14]} 17. c4 {[%clk 0:02:47]}  Rf8 {[%clk 0:01:10]} 18. Re1 {[%clk 0:02:38]}  d5 {[%clk 0:01:07]} 19. cxd5 {[%clk 0:02:35]}  Qxd5 {[%clk 0:01:03]} 20. Qe2 {[%clk 0:02:29]}  Nd6 {[%clk 0:00:52]} 21. Rad1 {[%clk 0:02:23]}  Qxa2 {[%clk 0:00:50]} 22. Nxe5 {[%clk 0:02:15]}  Nxe5 {[%clk 0:00:41]} 23. Qxe5 {[%clk 0:02:15]}  Rf5 {[%clk 0:00:37]} 24. Qxe6+ {[%clk 0:02:13]}  Qxe6 {[%clk 0:00:38]} 25. Rxe6 {[%clk 0:02:13]}  Kf7 {[%clk 0:00:24]} 26. Rexd6 {[%clk 0:02:11]}  Bxd6 {[%clk 0:00:25]} 27. Rxd6 {[%clk 0:02:12]}  Rb5 {[%clk 0:00:26]} 28. Bd4 {[%clk 0:02:06]}  Ke7 {[%clk 0:00:26]} 29. Rb6 {[%clk 0:02:01]}  Rd5 {[%clk 0:00:26]} 30. Rxb7+ {[%clk 0:01:58]}  Ke6 {[%clk 0:00:26]} 31. Rb4 {[%clk 0:01:57]} 1-0


[Site "https://www.chess.com"]

[Event "Titled Tuesday Blitz March 07 Early 2023"]
[White "Ljukin, Sergei"]
[Black "Dwilewicz, Katarzyna"]
[WhiteFideId "14102200"]
[BlackFideId "1148486"]
[WhiteElo "2312"]
[BlackElo "2065"]
[Result "0-1"]
[Round "04"]
[TimeControl "180+2"]
[Date "2023.03.07"]
[WhiteClock "0:01:57"]
[BlackClock "0:00:39"]

1. e4 {[%clk 0:03:00]}  c5 {[%clk 0:02:58]} 2. Nf3 {[%clk 0:03:00]}  d6 {[%clk 0:02:56]} 3. d4 {[%clk 0:03:00]}  cxd4 {[%clk 0:02:56]} 4. Nxd4 {[%clk 0:03:01]}  Nf6 {[%clk 0:02:57]} 5. Nc3 {[%clk 0:03:01]}  a6 {[%clk 0:02:52]} 6. Bg5 {[%clk 0:03:01]}  Nbd7 {[%clk 0:02:51]} 7. f4 {[%clk 0:03:00]}  h6 {[%clk 0:02:47]} 8. Bxf6 {[%clk 0:03:00]}  Nxf6 {[%clk 0:02:47]} 9. Qf3 {[%clk 0:02:59]}  e6 {[%clk 0:02:44]} 10. f5 {[%clk 0:02:54]}  e5 {[%clk 0:02:42]} 11. Nde2 {[%clk 0:02:54]}  b5 {[%clk 0:02:41]} 12. O-O-O {[%clk 0:02:53]}  Bb7 {[%clk 0:02:41]} 13. g4 {[%clk 0:02:52]}  Qa5 {[%clk 0:02:35]} 14. Kb1 {[%clk 0:02:51]}  Rc8 {[%clk 0:02:30]} 15. h4 {[%clk 0:02:49]}  b4 {[%clk 0:02:25]} 16. Nd5 {[%clk 0:02:49]}  Nxd5 {[%clk 0:02:24]} 17. exd5 {[%clk 0:02:48]}  Qc5 {[%clk 0:02:20]} 18. Rd2 {[%clk 0:02:36]}  Be7 {[%clk 0:02:14]} 19. Ng3 {[%clk 0:02:34]}  Qa5 {[%clk 0:01:52]} 20. Ne4 {[%clk 0:02:22]}  Kf8 {[%clk 0:00:43]} 21. f6 {[%clk 0:02:00]}  gxf6 {[%clk 0:00:41]} 22. Nxf6 {[%clk 0:01:57]}  b3 {[%clk 0:00:39]} 0-1


[Site "https://www.chess.com"]

[Event "Titled Tuesday Blitz March 07 Early 2023"]
[White "Fathy, Elameir"]
[Black "TimGrutter03"]
[WhiteFideId "10600396"]
[WhiteElo "2311"]
[BlackElo "2498"]
[Result "0-1"]
[Round "04"]
[TimeControl "180+2"]
[Date "2023.03.07"]
[WhiteClock "0:00:18"]
[BlackClock "0:00:23"]

1. d4 {[%clk 0:02:48]}  Nf6 {[%clk 0:03:00]} 2. c4 {[%clk 0:02:48]}  g6 {[%clk 0:03:00]} 3. Nc3 {[%clk 0:02:48]}  Bg7 {[%clk 0:03:00]} 4. Nf3 {[%clk 0:02:49]}  O-O {[%clk 0:03:00]} 5. e4 {[%clk 0:02:50]}  d6 {[%clk 0:03:01]} 6. Be2 {[%clk 0:02:50]}  e5 {[%clk 0:03:01]} 7. Be3 {[%clk 0:02:50]}  exd4 {[%clk 0:03:01]} 8. Nxd4 {[%clk 0:02:49]}  Re8 {[%clk 0:03:01]} 9. f3 {[%clk 0:02:49]}  c6 {[%clk 0:03:02]} 10. Bf2 {[%clk 0:02:50]}  d5 {[%clk 0:03:02]} 11. exd5 {[%clk 0:02:50]}  cxd5 {[%clk 0:03:03]} 12. O-O {[%clk 0:02:50]}  Nc6 {[%clk 0:03:04]} 13. c5 {[%clk 0:02:50]}  Bf8 {[%clk 0:03:04]} 14. Kh1 {[%clk 0:02:50]}  a5 {[%clk 0:02:49]} 15. Qd2 {[%clk 0:02:44]}  Bd7 {[%clk 0:02:34]} 16. Rac1 {[%clk 0:02:37]}  Rc8 {[%clk 0:02:32]} 17. Rfd1 {[%clk 0:02:35]}  Bxc5 {[%clk 0:02:28]} 18. Nxc6 {[%clk 0:02:15]}  Rxc6 {[%clk 0:02:29]} 19. Bb5 {[%clk 0:02:14]}  Rc8 {[%clk 0:02:20]} 20. Bxd7 {[%clk 0:01:46]}  Qxd7 {[%clk 0:02:21]} 21. Bh4 {[%clk 0:01:45]}  Be3 {[%clk 0:02:03]} 22. Qd3 {[%clk 0:01:43]}  Bxc1 {[%clk 0:02:02]} 23. Bxf6 {[%clk 0:01:44]}  Bh6 {[%clk 0:01:33]} 24. Nxd5 {[%clk 0:01:44]}  Qe6 {[%clk 0:01:24]} 25. Bc3 {[%clk 0:01:40]}  Red8 {[%clk 0:01:06]} 26. h3 {[%clk 0:00:50]}  Bg7 {[%clk 0:00:48]} 27. Bxg7 {[%clk 0:00:44]}  Kxg7 {[%clk 0:00:49]} 28. b3 {[%clk 0:00:33]}  f6 {[%clk 0:00:27]} 29. Nf4 {[%clk 0:00:18]}  Qc6 {[%clk 0:00:23]} 0-1


[Site "https://www.chess.com"]

[Event "Titled Tuesday Blitz March 07 Early 2023"]
[White "Buscar, Michael"]
[Black "Balla, Tamas-Kristof"]
[WhiteFideId "2603616"]
[BlackFideId "1208497"]
[WhiteElo "2010"]
[BlackElo "2334"]
[Result "0-1"]
[Round "04"]
[TimeControl "180+2"]
[Date "2023.03.07"]
[WhiteClock "0:00:10"]
[BlackClock "0:00:11"]

1. Nf3 {[%clk 0:02:51]}  c5 {[%clk 0:02:58]} 2. b3 {[%clk 0:02:50]}  Nc6 {[%clk 0:02:53]} 3. Bb2 {[%clk 0:02:50]}  d5 {[%clk 0:02:53]} 4. e3 {[%clk 0:02:51]}  a6 {[%clk 0:02:53]} 5. c4 {[%clk 0:02:51]}  Bg4 {[%clk 0:02:48]} 6. cxd5 {[%clk 0:02:50]}  Qxd5 {[%clk 0:02:47]} 7. Be2 {[%clk 0:02:51]}  Nf6 {[%clk 0:02:45]} 8. O-O {[%clk 0:02:50]}  e6 {[%clk 0:02:44]} 9. d3 {[%clk 0:02:43]}  Be7 {[%clk 0:02:39]} 10. a3 {[%clk 0:02:41]}  O-O {[%clk 0:02:36]} 11. Nbd2 {[%clk 0:02:41]}  Rfd8 {[%clk 0:02:24]} 12. Qc2 {[%clk 0:02:39]}  e5 {[%clk 0:02:13]} 13. Rfe1 {[%clk 0:02:33]}  Rac8 {[%clk 0:02:13]} 14. Nf1 {[%clk 0:02:29]}  b5 {[%clk 0:02:03]} 15. Ng3 {[%clk 0:02:28]}  Be6 {[%clk 0:01:18]} 16. Nd2 {[%clk 0:02:15]}  Na5 {[%clk 0:01:09]} 17. e4 {[%clk 0:01:52]}  Qd6 {[%clk 0:00:58]} 18. Nf5 {[%clk 0:01:46]}  Bxf5 {[%clk 0:00:58]} 19. exf5 {[%clk 0:01:47]}  c4 {[%clk 0:00:57]} 20. bxc4 {[%clk 0:01:25]}  bxc4 {[%clk 0:00:51]} 21. Nxc4 {[%clk 0:01:24]}  Qc5 {[%clk 0:00:39]} 22. Qa4 {[%clk 0:01:18]}  Nxc4 {[%clk 0:00:34]} 23. dxc4 {[%clk 0:01:16]}  Ne4 {[%clk 0:00:24]} 24. Rf1 {[%clk 0:01:03]}  Rd2 {[%clk 0:00:24]} 25. Bxe5 {[%clk 0:00:17]}  Rxe2 {[%clk 0:00:20]} 26. Bg3 {[%clk 0:00:15]}  Bd6 {[%clk 0:00:12]} 27. Qb4 {[%clk 0:00:14]}  Bxg3 {[%clk 0:00:12]} 28. Qxc5 {[%clk 0:00:14]}  Bxh2+ {[%clk 0:00:11]} 29. Kxh2 {[%clk 0:00:14]}  Nxc5 {[%clk 0:00:12]} 30. Kg3 {[%clk 0:00:13]}  Re4 {[%clk 0:00:12]} 31. Rac1 {[%clk 0:00:12]}  h6 {[%clk 0:00:12]} 32. Kf3 {[%clk 0:00:12]}  Re5 {[%clk 0:00:12]} 33. g4 {[%clk 0:00:12]}  Rce8 {[%clk 0:00:10]} 34. Rfd1 {[%clk 0:00:12]}  Re4 {[%clk 0:00:09]} 35. Rd5 {[%clk 0:00:12]}  Na4 {[%clk 0:00:07]} 36. Ra5 {[%clk 0:00:11]}  Nb2 {[%clk 0:00:07]} 37. Rxa6 {[%clk 0:00:11]}  Nd3 {[%clk 0:00:07]} 38. Rd1 {[%clk 0:00:11]}  Ne1+ {[%clk 0:00:07]} 39. Rxe1 {[%clk 0:00:11]}  Rxe1 {[%clk 0:00:08]} 40. c5 {[%clk 0:00:12]}  Rc1 {[%clk 0:00:08]} 41. c6 {[%clk 0:00:12]}  Rc8 {[%clk 0:00:09]} 42. a4 {[%clk 0:00:13]}  R1xc6 {[%clk 0:00:09]} 43. Ra7 {[%clk 0:00:13]}  Rc3+ {[%clk 0:00:09]} 44. Kg2 {[%clk 0:00:13]}  Ra3 {[%clk 0:00:10]} 45. a5 {[%clk 0:00:13]}  Rc5 {[%clk 0:00:10]} 46. a6 {[%clk 0:00:12]}  Rc6 {[%clk 0:00:10]} 47. Re7 {[%clk 0:00:13]}  Raxa6 {[%clk 0:00:10]} 48. Re3 {[%clk 0:00:13]}  Ra4 {[%clk 0:00:10]} 49. f3 {[%clk 0:00:13]}  Rc2+ {[%clk 0:00:10]} 50. Kg3 {[%clk 0:00:13]}  Kh7 {[%clk 0:00:10]} 51. Re7 {[%clk 0:00:12]}  f6 {[%clk 0:00:08]} 52. Re3 {[%clk 0:00:11]}  Ra1 {[%clk 0:00:08]} 53. Rd3 {[%clk 0:00:10]}  Rg1+ {[%clk 0:00:08]} 54. Kf4 {[%clk 0:00:10]}  Rf1 {[%clk 0:00:08]} 55. Kg3 {[%clk 0:00:10]}  Rc5 {[%clk 0:00:08]} 56. Kg2 {[%clk 0:00:10]}  Rfc1 {[%clk 0:00:09]} 57. Kg3 {[%clk 0:00:10]}  R1c3 {[%clk 0:00:09]} 58. Rd7 {[%clk 0:00:11]}  Re5 {[%clk 0:00:10]} 59. Rd4 {[%clk 0:00:10]}  Ree3 {[%clk 0:00:10]} 60. Rf4 {[%clk 0:00:11]}  Rb3 {[%clk 0:00:11]} 61. Kg2 {[%clk 0:00:11]}  Rb2+ {[%clk 0:00:11]} 62. Kg3 {[%clk 0:00:11]}  Rbb3 {[%clk 0:00:10]} 63. Kf2 {[%clk 0:00:11]}  Rec3 {[%clk 0:00:10]} 64. Kg3 {[%clk 0:00:12]}  Kg8 {[%clk 0:00:10]} 65. Kf2 {[%clk 0:00:12]}  Kf7 {[%clk 0:00:11]} 66. Kg3 {[%clk 0:00:12]}  Ke7 {[%clk 0:00:12]} 67. Kg2 {[%clk 0:00:12]}  Kd6 {[%clk 0:00:12]} 68. Rd4+ {[%clk 0:00:13]}  Kc5 {[%clk 0:00:12]} 69. Rd8 {[%clk 0:00:12]}  Rxf3 {[%clk 0:00:12]} 70. Rc8+ {[%clk 0:00:12]}  Kd6 {[%clk 0:00:12]} 71. Rg8 {[%clk 0:00:12]}  Rg3+ {[%clk 0:00:12]} 72. Kf2 {[%clk 0:00:13]}  Rxg4 {[%clk 0:00:12]} 73. Ke2 {[%clk 0:00:12]}  Rh3 {[%clk 0:00:11]} 74. Kf2 {[%clk 0:00:12]}  Rg5 {[%clk 0:00:11]} 75. Rd8+ {[%clk 0:00:09]}  Ke5 {[%clk 0:00:11]} 76. Rd3 {[%clk 0:00:10]}  Rxd3 {[%clk 0:00:11]} 0-1


[Site "https://www.chess.com"]

[Event "Titled Tuesday Blitz March 07 Early 2023"]
[White "Mammadzada, Gunay"]
[Black "Dishman, Stephen"]
[WhiteFideId "13403729"]
[BlackFideId "403024"]
[WhiteElo "2396"]
[BlackElo "2204"]
[Result "1-0"]
[Round "04"]
[TimeControl "180+2"]
[Date "2023.03.07"]
[WhiteClock "0:00:04"]
[BlackClock "0:00:01"]

1. e4 {[%clk 0:00:49]}  c5 {[%clk 0:02:59]} 2. Nf3 {[%clk 0:00:49]}  g6 {[%clk 0:02:59]} 3. d4 {[%clk 0:00:49]}  cxd4 {[%clk 0:02:59]} 4. Nxd4 {[%clk 0:00:46]}  Nc6 {[%clk 0:02:59]} 5. c4 {[%clk 0:00:42]}  Nf6 {[%clk 0:02:58]} 6. Nc3 {[%clk 0:00:41]}  d6 {[%clk 0:02:58]} 7. f3 {[%clk 0:00:40]}  Bg7 {[%clk 0:02:57]} 8. Be3 {[%clk 0:00:40]}  O-O {[%clk 0:02:54]} 9. Be2 {[%clk 0:00:37]}  Nh5 {[%clk 0:02:52]} 10. O-O {[%clk 0:00:34]}  Nf4 {[%clk 0:02:52]} 11. Qd2 {[%clk 0:00:27]}  Nxe2+ {[%clk 0:02:43]} 12. Ncxe2 {[%clk 0:00:25]}  Bd7 {[%clk 0:02:39]} 13. f4 {[%clk 0:00:17]}  Rc8 {[%clk 0:02:24]} 14. Rac1 {[%clk 0:00:15]}  a6 {[%clk 0:02:18]} 15. b4 {[%clk 0:00:14]}  e5 {[%clk 0:02:03]} 16. Nb3 {[%clk 0:00:12]}  exf4 {[%clk 0:01:52]} 17. Bxf4 {[%clk 0:00:07]}  Ne5 {[%clk 0:01:51]} 18. c5 {[%clk 0:00:05]}  dxc5 {[%clk 0:01:47]} 19. Nxc5 {[%clk 0:00:05]}  Bb5 {[%clk 0:01:31]} 20. Qe3 {[%clk 0:00:03]}  b6 {[%clk 0:00:57]} 21. Rfd1 {[%clk 0:00:02]}  Qe7 {[%clk 0:00:52]} 22. Nb3 {[%clk 0:00:02]}  Qxb4 {[%clk 0:00:48]} 23. Ned4 {[%clk 0:00:02]}  Nc4 {[%clk 0:00:38]} 24. Qg3 {[%clk 0:00:02]}  Rfe8 {[%clk 0:00:28]} 25. e5 {[%clk 0:00:02]}  Nxe5 {[%clk 0:00:26]} 26. Rxc8 {[%clk 0:00:02]}  Rxc8 {[%clk 0:00:21]} 27. Bxe5 {[%clk 0:00:02]}  Re8 {[%clk 0:00:18]} 28. Bxg7 {[%clk 0:00:02]}  Kxg7 {[%clk 0:00:19]} 29. Nf5+ {[%clk 0:00:03]}  Kf8 {[%clk 0:00:18]} 30. Nd6 {[%clk 0:00:03]}  Rd8 {[%clk 0:00:17]} 31. h3 {[%clk 0:00:02]}  Bc4 {[%clk 0:00:16]} 32. Rd4 {[%clk 0:00:02]}  Qc3 {[%clk 0:00:11]} 33. Rxc4 {[%clk 0:00:02]}  Qf6 {[%clk 0:00:10]} 34. Rf4 {[%clk 0:00:02]}  Qxd6 {[%clk 0:00:09]} 35. Qf3 {[%clk 0:00:03]}  Qd7 {[%clk 0:00:06]} 36. Rd4 {[%clk 0:00:03]}  Qe7 {[%clk 0:00:05]} 37. Rf4 {[%clk 0:00:03]}  Qd7 {[%clk 0:00:04]} 38. Kh2 {[%clk 0:00:04]}  a5 {[%clk 0:00:04]} 39. Nd4 {[%clk 0:00:04]}  Qd6 {[%clk 0:00:03]} 40. a4 {[%clk 0:00:04]}  Qd7 {[%clk 0:00:03]} 41. Nb5 {[%clk 0:00:04]}  Kg7 {[%clk 0:00:03]} 42. h4 {[%clk 0:00:04]}  f5 {[%clk 0:00:03]} 43. Nd4 {[%clk 0:00:04]}  Qd5 {[%clk 0:00:02]} 44. Nc6 {[%clk 0:00:04]}  Qxf3 {[%clk 0:00:01]} 45. Rxf3 {[%clk 0:00:05]}  Rd6 {[%clk 0:00:01]} 46. Na7 {[%clk 0:00:04]} 1-0


[Site "https://www.chess.com"]

[Event "Titled Tuesday Blitz March 07 Early 2023"]
[White "Buksa, Nataliya"]
[Black "Orujov, Elshad"]
[WhiteFideId "14123622"]
[BlackFideId "13403540"]
[WhiteElo "2316"]
[BlackElo "2342"]
[Result "1-0"]
[Round "04"]
[TimeControl "180+2"]
[Date "2023.03.07"]
[WhiteClock "0:02:40"]
[BlackClock "0:02:00"]

1. d4 {[%clk 0:02:55]}  Nf6 {[%clk 0:03:00]} 2. Nc3 {[%clk 0:02:54]}  d5 {[%clk 0:02:59]} 3. Bf4 {[%clk 0:02:55]}  c5 {[%clk 0:02:51]} 4. e3 {[%clk 0:02:55]}  a6 {[%clk 0:02:50]} 5. Nf3 {[%clk 0:02:55]}  Nc6 {[%clk 0:02:50]} 6. Ne5 {[%clk 0:02:55]}  e6 {[%clk 0:02:40]} 7. Be2 {[%clk 0:02:55]}  Bd6 {[%clk 0:02:37]} 8. Nxc6 {[%clk 0:02:53]}  bxc6 {[%clk 0:02:37]} 9. dxc5 {[%clk 0:02:54]}  Bxc5 {[%clk 0:02:29]} 10. Na4 {[%clk 0:02:54]}  Ba7 {[%clk 0:02:22]} 11. O-O {[%clk 0:02:53]}  O-O {[%clk 0:02:22]} 12. b3 {[%clk 0:02:52]}  c5 {[%clk 0:02:19]} 13. c4 {[%clk 0:02:52]}  Bb7 {[%clk 0:02:11]} 14. Bf3 {[%clk 0:02:52]}  Qe7 {[%clk 0:02:03]} 15. Rc1 {[%clk 0:02:51]}  Rfd8 {[%clk 0:02:03]} 16. cxd5 {[%clk 0:02:50]}  exd5 {[%clk 0:02:00]} 17. Qc2 {[%clk 0:02:40]} 1-0


[Site "https://www.chess.com"]

[Event "Titled Tuesday Blitz March 07 Early 2023"]
[White "Zaichenko, Daria"]
[Black "Goltseva, Ekaterina"]
[WhiteFideId "4197453"]
[BlackFideId "24173770"]
[WhiteElo "2039"]
[BlackElo "2200"]
[Result "0-1"]
[Round "04"]
[TimeControl "180+2"]
[Date "2023.03.07"]
[WhiteClock "0:00:06"]
[BlackClock "0:00:06"]

1. e4 {[%clk 0:02:59]}  c5 {[%clk 0:02:53]} 2. Nf3 {[%clk 0:02:59]}  e6 {[%clk 0:02:53]} 3. d4 {[%clk 0:03:00]}  cxd4 {[%clk 0:02:53]} 4. Nxd4 {[%clk 0:03:00]}  Nf6 {[%clk 0:02:53]} 5. Nc3 {[%clk 0:03:00]}  Nc6 {[%clk 0:02:54]} 6. Ndb5 {[%clk 0:02:59]}  Bc5 {[%clk 0:02:54]} 7. Nd6+ {[%clk 0:02:54]}  Ke7 {[%clk 0:02:54]} 8. Nxc8+ {[%clk 0:02:54]}  Rxc8 {[%clk 0:02:53]} 9. Bg5 {[%clk 0:02:52]}  h6 {[%clk 0:02:45]} 10. Bh4 {[%clk 0:02:40]}  g5 {[%clk 0:02:25]} 11. Bg3 {[%clk 0:02:40]}  d6 {[%clk 0:02:14]} 12. Bd3 {[%clk 0:02:33]}  Ne5 {[%clk 0:02:06]} 13. Bxe5 {[%clk 0:02:22]}  dxe5 {[%clk 0:02:06]} 14. a3 {[%clk 0:02:18]}  Qb6 {[%clk 0:01:58]} 15. O-O {[%clk 0:02:11]}  Qxb2 {[%clk 0:01:45]} 16. Nb5 {[%clk 0:02:01]}  a6 {[%clk 0:01:14]} 17. Rb1 {[%clk 0:02:00]}  Qa2 {[%clk 0:01:09]} 18. Nc3 {[%clk 0:01:59]}  Qxa3 {[%clk 0:01:07]} 19. Rxb7+ {[%clk 0:01:59]}  Kf8 {[%clk 0:01:05]} 20. Qf3 {[%clk 0:01:53]}  Kg7 {[%clk 0:00:59]} 21. Ne2 {[%clk 0:01:49]}  Rb8 {[%clk 0:00:48]} 22. Rc7 {[%clk 0:01:39]}  Bb6 {[%clk 0:00:46]} 23. Rc3 {[%clk 0:01:36]}  Qd6 {[%clk 0:00:42]} 24. Ng3 {[%clk 0:01:34]}  g4 {[%clk 0:00:38]} 25. Qe2 {[%clk 0:01:30]}  h5 {[%clk 0:00:38]} 26. Qd2 {[%clk 0:01:24]}  Kg6 {[%clk 0:00:31]} 27. h4 {[%clk 0:01:23]}  Ba5 {[%clk 0:00:29]} 28. Qg5+ {[%clk 0:01:19]}  Kh7 {[%clk 0:00:29]} 29. Qxf6 {[%clk 0:01:06]}  Bxc3 {[%clk 0:00:25]} 30. Qxf7+ {[%clk 0:00:43]}  Kh6 {[%clk 0:00:24]} 31. Qxh5+ {[%clk 0:00:15]}  Kg7 {[%clk 0:00:24]} 32. Qxg4+ {[%clk 0:00:15]}  Kf7 {[%clk 0:00:18]} 33. Nh5 {[%clk 0:00:12]}  Rbf8 {[%clk 0:00:12]} 34. f4 {[%clk 0:00:09]}  Qc5+ {[%clk 0:00:08]} 35. Kh1 {[%clk 0:00:08]}  Rhg8 {[%clk 0:00:05]} 36. fxe5+ {[%clk 0:00:06]}  Ke7 {[%clk 0:00:06]} 0-1


[Site "https://www.chess.com"]